fUST/lending_fUST_20241229
["ID","MTS","AMOUNT","RATE_DAILY","PERIOD"]
[346985582,1735452644929,-500.0,9.297e-05,2]
[346985583,1735452644938,-5649.7,9.297e-05,2]
[346985584,1735452644947,-500.0,9.297e-05,2]
[346985585,1735452644957,-500.0,9.297e-05,2]
[346985586,1735452644966,-500.0,9.297e-05,2]
[346985587,1735452644975,-323.83944576,9.297e-05,2]
[346985588,1735452644984,-500.0,9.297e-05,2]
[346985589,1735452644993,-500.0,9.297e-05,2]
[346985590,1735452645003,-500.0,9.297e-05,2]
[346985591,1735452645013,-500.0,9.298e-05,2]
[346985592,1735452645022,-500.0,9.298e-05,2]
[346985593,1735452645031,-500.0,9.298e-05,2]
[346985594,1735452645040,-500.0,9.298e-05,2]
[346985595,1735452645049,-500.0,9.298e-05,2]
[346985596,1735452645062,-180.89743198,9.298e-05,2]
[346985597,1735452645072,-500.0,9.298e-05,2]
[346985598,1735452645081,-500.0,9.298e-05,2]
[346985599,1735452645090,-500.0,9.298e-05,2]
[346985600,1735452645100,-500.0,9.298e-05,2]
[346985601,1735452645109,-501.8900386,9.298e-05,2]
[346985602,1735452645120,-500.0,9.298e-05,2]
[346985603,1735452645129,-500.0,9.298e-05,2]
[346985604,1735452645138,-500.0,9.298e-05,2]
[346985605,1735452645148,-500.0,9.298e-05,2]
[346985606,1735452645158,-500.0,9.298e-05,2]
[346985607,1735452645167,-500.0,9.298e-05,2]
[346985608,1735452645177,-500.0,9.298e-05,2]
[346985609,1735452645187,-500.0,9.298e-05,2]
[346985610,1735452645197,-500.0,9.298e-05,2]
[346985611,1735452645207,-500.0,9.298e-05,2]
[346985612,1735452645216,-500.0,9.298e-05,2]
[346985613,1735452645226,-500.0,9.298e-05,2]
[346985614,1735452645236,-500.0,9.298e-05,2]
[346985615,1735452645245,-500.0,9.298e-05,2]
[346985616,1735452645254,-500.0,9.298e-05,2]
[346985617,1735452645263,-500.0,9.298e-05,2]
[346985618,1735452645273,-500.0,9.298e-05,2]
[346985619,1735452645282,-500.0,9.298e-05,2]
[346985620,1735452645291,-500.0,9.298e-05,2]
[346985621,1735452645301,-500.0,9.298e-05,2]
[346985622,1735452645312,-500.0,9.298e-05,2]
[346985623,1735452645322,-500.0,9.298e-05,2]
[346985624,1735452645331,-500.0,9.298e-05,2]
[346985625,1735452645340,-500.0,9.298e-05,2]
[346985626,1735452645350,-500.0,9.298e-05,2]
[346985627,1735452645359,-500.0,9.298e-05,2]
[346985628,1735452645368,-500.0,9.298e-05,2]
[346985629,1735452645378,-500.0,9.298e-05,2]
[346985630,1735452645387,-500.0,9.298e-05,2]
[346985631,1735452645397,-72.27913591,9.298e-05,2]
[346985633,1735452706073,22769.61180753,8.611e-05,2]
[346985634,1735452706111,2130.38819247,8.611e-05,2]
[346985637,1735453543123,-300.0,9.109e-05,2]
[346985638,1735453543144,-319.1077605,9.201e-05,2]
[346985639,1735453554095,-141.96964183,9.201e-05,2]
[346985640,1735453554117,-257.9967625,9.294e-05,2]
[346985641,1735453554227,-300.0,9.294e-05,2]
[346985642,1735453554248,-500.0,9.295e-05,2]
[346985643,1735453554267,-500.0,9.295e-05,2]
[346985644,1735453554287,-500.0,9.295e-05,2]
[346985645,1735453554307,-529.84760102,9.295e-05,2]
[346985646,1735453554327,-103.71767571,9.295e-05,2]
[346985647,1735453632103,-300.0,9.201e-05,2]
[346985648,1735453632127,-150.0,9.294e-05,2]
[346985649,1735453637102,-514.72696536,9.294e-05,2]
[346985650,1735453637129,-300.0,9.294e-05,2]
[346985651,1735453637152,-193.09095777,9.295e-05,2]
[346985652,1735453638130,-203.19136652,9.295e-05,2]
[346985653,1735453638151,-500.0,9.295e-05,2]
[346985654,1735453638173,-500.0,9.295e-05,2]
[346985655,1735453638195,-345.5229432,9.295e-05,2]
[346985656,1735453643102,-814.72696536,9.201e-05,2]
[346985657,1735453643124,-154.4770568,9.295e-05,2]
[346985658,1735453643265,-48.02964906,9.295e-05,2]
[346985659,1735453645138,-451.97035094,9.295e-05,2]
[346985660,1735453645160,-500.0,9.295e-05,2]
[346985661,1735453645183,-500.0,9.295e-05,2]
[346985662,1735453645204,-500.0,9.295e-05,2]
[346985663,1735453645229,-263.39561739,9.295e-05,2]
[346985665,1735453719083,-452.96829488,9.202e-05,2]
[346985666,1735453719110,-300.0,9.294e-05,2]
[346985667,1735453719140,-213.99254788,9.294e-05,2]
[346985681,1735453832675,-300.0,9.293e-05,2]
[346985682,1735453832685,-286.00745212,9.294e-05,2]
[346985683,1735453832694,-500.0,9.294e-05,2]
[346985684,1735453832704,-595.55,9.294e-05,2]
[346985685,1735453832713,-500.0,9.294e-05,2]
[346985686,1735453832723,-500.0,9.294e-05,2]
[346985687,1735453832733,-500.0,9.294e-05,2]
[346985688,1735453832742,-500.0,9.294e-05,2]
[346985689,1735453832752,-500.0,9.294e-05,2]
[346985690,1735453832762,-500.0,9.294e-05,2]
[346985691,1735453832771,-500.0,9.294e-05,2]
[346985692,1735453832780,-500.0,9.294e-05,2]
[346985693,1735453832790,-236.60438261,9.295e-05,2]
[346985694,1735453832801,-500.0,9.295e-05,2]
[346985695,1735453832811,-638.34164512,9.295e-05,2]
[346985696,1735453832821,-500.0,9.295e-05,2]
[346985697,1735453832830,-500.86610411,9.295e-05,2]
[346985698,1735453832841,-500.0,9.295e-05,2]
[346985699,1735453832851,-502.82223287,9.295e-05,2]
[346985700,1735453832860,-511.08819743,9.295e-05,2]
[346985701,1735453832870,-273.87819711,9.295e-05,2]
[346985702,1735453832879,-500.0,9.295e-05,2]
[346985703,1735453832889,-500.0,9.295e-05,2]
[346985704,1735453832899,-503.0140394,9.295e-05,2]
[346985705,1735453832908,-504.13531925,9.295e-05,2]
[346985706,1735453832918,-501.5503333,9.295e-05,2]
[346985707,1735453832927,-500.0,9.295e-05,2]
[346985708,1735453832937,-500.0,9.295e-05,2]
[346985709,1735453833037,-500.0,9.295e-05,2]
[346985710,1735453833047,-501.66399504,9.295e-05,2]
[346985711,1735453833057,-500.0,9.295e-05,2]
[346985712,1735453833066,-500.0,9.295e-05,2]
[346985713,1735453833076,-500.0,9.295e-05,2]
[346985714,1735453833086,-500.0,9.295e-05,2]
[346985715,1735453833095,-502.95094852,9.295e-05,2]
[346985716,1735453833105,-500.0,9.295e-05,2]
[346985717,1735453833114,-500.0,9.295e-05,2]
[346985718,1735453833123,-500.0,9.295e-05,2]
[346985719,1735453833133,-500.0,9.295e-05,2]
[346985720,1735453833142,-500.0,9.295e-05,2]
[346985721,1735453833152,-500.0,9.295e-05,2]
[346985722,1735453833162,-500.0,9.295e-05,2]
[346985723,1735453833171,-500.0,9.295e-05,2]
[346985724,1735453833182,-500.0,9.295e-05,2]
[346985725,1735453833192,-501.40238604,9.295e-05,2]
[346985726,1735453833202,-501.65963515,9.295e-05,2]
[346985727,1735453833212,-500.0,9.295e-05,2]
[346985728,1735453833221,-196.25020381,9.295e-05,2]
[346985729,1735453833232,-500.0,9.295e-05,2]
[346985730,1735453833241,-500.0,9.295e-05,2]
[346985731,1735453833251,-500.0,9.295e-05,2]
[346985732,1735453833261,-500.0,9.295e-05,2]
[346985733,1735453833270,-500.0,9.295e-05,2]
[346985734,1735453833280,-500.0,9.295e-05,2]
[346985735,1735453833289,-494.5,9.295e-05,2]
[346985736,1735453833299,-503.63472708,9.295e-05,2]
[346985737,1735453833309,-500.0,9.295e-05,2]
[346985738,1735453833318,-500.0,9.295e-05,2]
[346985739,1735453833328,-500.0,9.295e-05,2]
[346985740,1735453833338,-500.0,9.295e-05,2]
[346985741,1735453833347,-500.0,9.295e-05,2]
[346985742,1735453833357,-500.0,9.295e-05,2]
[346985743,1735453833367,-500.0,9.295e-05,2]
[346985744,1735453833377,-500.0,9.295e-05,2]
[346985745,1735453833387,-500.0,9.295e-05,2]
[346985746,1735453833396,-500.0,9.295e-05,2]
[346985747,1735453833406,-500.0,9.295e-05,2]
[346985748,1735453833416,-500.0,9.295e-05,2]
[346985749,1735453833425,-500.0,9.295e-05,2]
[346985750,1735453833437,-502.13210088,9.295e-05,2]
[346985751,1735453833447,-502.13076604,9.295e-05,2]
[346985752,1735453833456,-502.02421527,9.295e-05,2]
[346985753,1735453833466,-500.0,9.295e-05,2]
[346985754,1735453833479,-159.95962785,9.295e-05,2]
[346985755,1735453833488,-500.0,9.295e-05,2]
[346985756,1735453833498,-500.0,9.295e-05,2]
[346985757,1735453833507,-352.93461706,9.295e-05,2]
[346985784,1735453838527,-331.4684663,9.294e-05,2]
[346985785,1735453838537,-147.06538294,9.295e-05,2]
[346985786,1735453838547,-298.17269816,9.295e-05,2]
[346985787,1735453838559,-87.60743528,9.295e-05,2]
[346985788,1735453838567,-500.0,9.295e-05,2]
[346985789,1735453838577,-500.0,9.295e-05,2]
[346985790,1735453838587,-503.23126151,9.295e-05,2]
[346985791,1735453838597,-500.0,9.295e-05,2]
[346985792,1735453838607,-501.81609562,9.295e-05,2]
[346985793,1735453838616,-500.0,9.295e-05,2]
[346985794,1735453838625,-417.84879014,9.295e-05,2]
[346985795,1735453838637,-82.15120986,9.295e-05,2]
[346985796,1735453838646,-500.0,9.295e-05,2]
[346985797,1735453838655,-500.0,9.295e-05,2]
[346985798,1735453838664,-1058.83,9.295e-05,2]
[346985799,1735453838673,-500.0,9.295e-05,2]
[346985800,1735453838682,-231.82466179,9.295e-05,2]
[346985801,1735453838694,-500.0,9.295e-05,2]
[346985802,1735453838704,-500.0,9.295e-05,2]
[346985803,1735453838714,-500.0,9.295e-05,2]
[346985804,1735453838723,-501.93780711,9.295e-05,2]
[346985805,1735453838733,-501.66892799,9.295e-05,2]
[346985806,1735453838742,-479.0,9.295e-05,2]
[346985807,1735453838752,-500.0,9.295e-05,2]
[346985808,1735453838761,-500.0,9.295e-05,2]
[346985809,1735453838770,-500.0,9.295e-05,2]
[346985810,1735453838779,-266.35607537,9.295e-05,2]
[346985811,1735453838788,-500.0,9.295e-05,2]
[346985812,1735453838798,-552.72226233,9.295e-05,2]
[346985813,1735453838807,-500.0,9.295e-05,2]
[346985814,1735453838816,-500.0,9.295e-05,2]
[346985815,1735453838825,-500.0,9.295e-05,2]
[346985816,1735453838834,-500.0,9.295e-05,2]
[346985817,1735453838843,-501.64476329,9.295e-05,2]
[346985818,1735453838852,-500.0,9.295e-05,2]
[346985819,1735453838861,-500.0,9.295e-05,2]
[346985820,1735453838870,-500.0,9.295e-05,2]
[346985821,1735453838879,-500.0,9.295e-05,2]
[346985822,1735453838888,-500.0,9.295e-05,2]
[346985823,1735453838897,-500.0,9.295e-05,2]
[346985824,1735453838906,-500.0,9.295e-05,2]
[346985825,1735453838915,-500.0,9.295e-05,2]
[346985826,1735453838924,-500.0,9.295e-05,2]
[346985827,1735453838934,-500.0,9.295e-05,2]
[346985828,1735453838943,-500.0,9.295e-05,2]
[346985829,1735453838952,-500.0,9.295e-05,2]
[346985830,1735453838961,-501.19319255,9.295e-05,2]
[346985831,1735453838970,-229.92639621,9.295e-05,2]
[346985832,1735453838978,-500.0,9.295e-05,2]
[346985833,1735453838988,-500.0,9.295e-05,2]
[346985834,1735453838997,-501.71655862,9.295e-05,2]
[346985835,1735453839006,-504.06544494,9.295e-05,2]
[346985836,1735453839015,-500.0,9.295e-05,2]
[346985837,1735453839024,-500.0,9.295e-05,2]
[346985838,1735453839033,-501.39210558,9.295e-05,2]
[346985839,1735453839043,-564.95,9.295e-05,2]
[346985840,1735453839052,-500.0,9.295e-05,2]
[346985841,1735453839061,-8142.44,9.295e-05,2]
[346985842,1735453839071,-500.0,9.295e-05,2]
[346985843,1735453839080,-501.3379503,9.295e-05,2]
[346985844,1735453839089,-500.0,9.295e-05,2]
[346985845,1735453839098,-502.52809694,9.295e-05,2]
[346985846,1735453839108,-500.0,9.295e-05,2]
[346985847,1735453839117,-500.0,9.295e-05,2]
[346985848,1735453839126,-535.06,9.295e-05,2]
[346985849,1735453839135,-500.0,9.295e-05,2]
[346985850,1735453839145,-500.0,9.295e-05,2]
[346985851,1735453839154,-506.67404025,9.295e-05,2]
[346985852,1735453839163,-507.86195965,9.295e-05,2]
[346985853,1735453839172,-500.0,9.295e-05,2]
[346985854,1735453839182,-500.0,9.295e-05,2]
[346985855,1735453839194,-500.0,9.295e-05,2]
[346985856,1735453839203,-503.7355724,9.295e-05,2]
[346985857,1735453839213,-500.0,9.295e-05,2]
[346985858,1735453839223,-500.0,9.295e-05,2]
[346985859,1735453839232,-500.0,9.295e-05,2]
[346985860,1735453839242,-500.0,9.295e-05,2]
[346985861,1735453839251,-500.0,9.295e-05,2]
[346985862,1735453839261,-500.0,9.295e-05,2]
[346985863,1735453839270,-497.1,9.295e-05,2]
[346985864,1735453839280,-500.0,9.295e-05,2]
[346985865,1735453839289,-500.0,9.295e-05,2]
[346985866,1735453839298,-500.0,9.296e-05,2]
[346985867,1735453839308,-500.0,9.296e-05,2]
[346985868,1735453839317,-500.0,9.296e-05,2]
[346985869,1735453839327,-500.0,9.296e-05,2]
[346985870,1735453839336,-500.0,9.296e-05,2]
[346985871,1735453839345,-505.75095665,9.296e-05,2]
[346985872,1735453839355,-529.08146239,9.296e-05,2]
[346985873,1735453839364,-500.0,9.296e-05,2]
[346985874,1735453839374,-500.0,9.296e-05,2]
[346985875,1735453839384,-500.0,9.296e-05,2]
[346985876,1735453839393,-500.0,9.296e-05,2]
[346985877,1735453839403,-500.0,9.296e-05,2]
[346985878,1735453839412,-500.0,9.296e-05,2]
[346985879,1735453839424,-500.0,9.296e-05,2]
[346985880,1735453839438,-500.0,9.296e-05,2]
[346985881,1735453839448,-503.03956369,9.296e-05,2]
[346985882,1735453839457,-500.0,9.296e-05,2]
[346985883,1735453839468,-500.0,9.296e-05,2]
[346985884,1735453839478,-500.0,9.296e-05,2]
[346985885,1735453839488,-500.0,9.296e-05,2]
[346985886,1735453839497,-500.0,9.296e-05,2]
[346985887,1735453839507,-500.0,9.296e-05,2]
[346985888,1735453839516,-500.0,9.296e-05,2]
[346985889,1735453839526,-500.0,9.296e-05,2]
[346985890,1735453839535,-500.0,9.296e-05,2]
[346985891,1735453839544,-500.0,9.296e-05,2]
[346985892,1735453839553,-500.0,9.296e-05,2]
[346985893,1735453839563,-500.0,9.296e-05,2]
[346985894,1735453839572,-501.0480722,9.296e-05,2]
[346985895,1735453839581,-500.0,9.296e-05,2]
[346985896,1735453839590,-491.66458463,9.296e-05,2]
[346985897,1735453839600,-500.0,9.296e-05,2]
[346985898,1735453839609,-502.28718536,9.296e-05,2]
[346985899,1735453839618,-500.0,9.296e-05,2]
[346985900,1735453839627,-500.0,9.296e-05,2]
[346985901,1735453839637,-500.0,9.297e-05,2]
[346985902,1735453839646,-524.59,9.297e-05,2]
[346985903,1735453839655,-500.0,9.297e-05,2]
[346985904,1735453839664,-500.0,9.297e-05,2]
[346985905,1735453839674,-500.0,9.297e-05,2]
[346985906,1735453839683,-500.0,9.297e-05,2]
[346985907,1735453839693,-500.0,9.297e-05,2]
[346985908,1735453839702,-500.0,9.297e-05,2]
[346985909,1735453839712,-500.0,9.297e-05,2]
[346985910,1735453839721,-500.0,9.297e-05,2]
[346985911,1735453839730,-500.0,9.297e-05,2]
[346985912,1735453839739,-881.36,9.297e-05,2]
[346985913,1735453839748,-500.0,9.298e-05,2]
[346985914,1735453839757,-500.0,9.298e-05,2]
[346985915,1735453839767,-567.568,9.5e-05,2]
[346985916,1735453839777,-500.0,9.568e-05,2]
[346985917,1735453839786,-500.0,9.568e-05,2]
[346985918,1735453839795,-500.0,9.568e-05,2]
[346985919,1735453839805,-595.55,9.568e-05,2]
[346985920,1735453839814,-500.0,9.568e-05,2]
[346985921,1735453839823,-500.0,9.568e-05,2]
[346985922,1735453839832,-500.0,9.568e-05,2]
[346985923,1735453839842,-500.0,9.568e-05,2]
[346985924,1735453839851,-500.0,9.568e-05,2]
[346985925,1735453839861,-500.0,9.568e-05,2]
[346985926,1735453839870,-228.35038073,9.569e-05,2]
[346985927,1735453839879,-500.0,9.569e-05,2]
[346985928,1735453839889,-500.0,9.569e-05,2]
[346985929,1735453839899,-485.95,9.569e-05,2]
[346985930,1735453839908,-293.21754117,9.569e-05,2]
[346985931,1735453839917,-500.0,9.569e-05,2]
[346985932,1735453839927,-500.0,9.569e-05,2]
[346985933,1735453839936,-500.0,9.569e-05,2]
[346985934,1735453839945,-356.82,9.569e-05,2]
[346985935,1735453839956,-500.0,9.569e-05,2]
[346985936,1735453839965,-500.0,9.569e-05,2]
[346985937,1735453839975,-174.60320061,9.569e-05,2]
[346985938,1735453839985,-582.48,9.569e-05,2]
[346985939,1735453839994,-500.0,9.569e-05,2]
[346985940,1735453840003,-500.0,9.569e-05,2]
[346985941,1735453840012,-303.8393839,9.569e-05,2]
[346985942,1735453840022,-500.0,9.569e-05,2]
[346985943,1735453840032,-500.0,9.569e-05,2]
[346985944,1735453840041,-500.0,9.569e-05,2]
[346985945,1735453840051,-500.0,9.569e-05,2]
[346985946,1735453840061,-500.0,9.569e-05,2]
[346985947,1735453840071,-500.0,9.569e-05,2]
[346985948,1735453840080,-500.0,9.569e-05,2]
[346985949,1735453840089,-500.0,9.569e-05,2]
[346985950,1735453840098,-500.0,9.569e-05,2]
[346985951,1735453840108,-500.0,9.569e-05,2]
[346985952,1735453840118,-500.0,9.569e-05,2]
[346985953,1735453840127,-500.0,9.569e-05,2]
[346985954,1735453840136,-500.0,9.569e-05,2]
[346985955,1735453840146,-500.0,9.569e-05,2]
[346985956,1735453840155,-500.0,9.569e-05,2]
[346985957,1735453840242,-502.0493717,9.569e-05,2]
[346985958,1735453840259,-500.0,9.569e-05,2]
[346985959,1735453840268,-500.0,9.569e-05,2]
[346985960,1735453840277,-560.77130947,9.569e-05,2]
[346985961,1735453840286,-500.0,9.569e-05,2]
[346985962,1735453840296,-500.0,9.569e-05,2]
[346985963,1735453840305,-500.0,9.569e-05,2]
[346985964,1735453840314,-500.0,9.569e-05,2]
[346985965,1735453840323,-500.0,9.569e-05,2]
[346985966,1735453840332,-1058.83,9.569e-05,2]
[346985967,1735453840341,-1491.27307142,9.569e-05,2]
[346985968,1735453840350,-500.0,9.569e-05,2]
[346985969,1735453840359,-500.0,9.569e-05,2]
[346985970,1735453840368,-500.0,9.569e-05,2]
[346985971,1735453840378,-879.922795,9.569e-05,2]
[346985972,1735453840387,-500.0,9.569e-05,2]
[346985973,1735453840396,-879.922795,9.569e-05,2]
[346985974,1735453840406,-500.0,9.569e-05,2]
[346985975,1735453840416,-502.88550786,9.569e-05,2]
[346985976,1735453840428,-500.0,9.569e-05,2]
[346985978,1735453840438,-502.78631016,9.569e-05,2]
[346985980,1735453840448,-500.0,9.569e-05,2]
[346985982,1735453840457,-503.0233669,9.569e-05,2]
[346985984,1735453840467,-500.0,9.569e-05,2]
[346985985,1735453840477,-500.0,9.569e-05,2]
[346985986,1735453840486,-500.0,9.569e-05,2]
[346985988,1735453840497,-500.0,9.569e-05,2]
[346985990,1735453840507,-500.0,9.569e-05,2]
[346985992,1735453840516,-500.0,9.569e-05,2]
[346985993,1735453840526,-500.0,9.569e-05,2]
[346985994,1735453840535,-500.0,9.569e-05,2]
[346985995,1735453840545,-504.69003701,9.569e-05,2]
[346985997,1735453840554,-564.95,9.569e-05,2]
[346985999,1735453840563,-8142.44,9.569e-05,2]
[346986001,1735453840572,-500.0,9.569e-05,2]
[346986002,1735453840581,-500.0,9.569e-05,2]
[346986003,1735453840591,-500.0,9.569e-05,2]
[346986004,1735453840601,-500.0,9.569e-05,2]
[346986006,1735453840610,-500.0,9.569e-05,2]
[346986007,1735453840620,-500.0,9.569e-05,2]
[346986008,1735453840629,-221.76,9.569e-05,2]
[346986009,1735453840639,-500.0,9.569e-05,2]
[346986010,1735453840648,-500.0,9.569e-05,2]
[346986011,1735453840657,-500.0,9.569e-05,2]
[346986012,1735453840666,-500.0,9.569e-05,2]
[346986013,1735453840676,-500.0,9.569e-05,2]
[346986014,1735453840685,-500.0,9.569e-05,2]
[346986015,1735453840695,-500.0,9.569e-05,2]
[346986016,1735453840704,-500.0,9.57e-05,2]
[346986017,1735453840714,-500.0,9.57e-05,2]
[346986018,1735453840723,-500.0,9.57e-05,2]
[346986019,1735453840732,-500.0,9.57e-05,2]
[346986020,1735453840741,-500.0,9.57e-05,2]
[346986021,1735453840750,-558.68,9.57e-05,2]
[346986022,1735453840759,-500.0,9.57e-05,2]
[346986023,1735453840769,-500.0,9.57e-05,2]
[346986024,1735453840778,-503.1594371,9.57e-05,2]
[346986025,1735453840787,-502.88698765,9.57e-05,2]
[346986026,1735453840797,-500.0,9.57e-05,2]
[346986027,1735453840806,-500.0,9.57e-05,2]
[346986028,1735453840815,-500.0,9.57e-05,2]
[346986029,1735453840824,-502.25138844,9.57e-05,2]
[346986030,1735453840833,-500.0,9.57e-05,2]
[346986031,1735453840843,-500.0,9.57e-05,2]
[346986032,1735453840852,-500.0,9.57e-05,2]
[346986033,1735453840862,-500.0,9.57e-05,2]
[346986034,1735453840871,-500.0,9.57e-05,2]
[346986035,1735453840881,-500.0,9.57e-05,2]
[346986036,1735453840891,-500.0,9.571e-05,2]
[346986037,1735453840900,-500.0,9.571e-05,2]
[346986038,1735453840910,-500.0,9.571e-05,2]
[346986039,1735453840919,-500.0,9.571e-05,2]
[346986040,1735453840928,-879.922795,9.571e-05,2]
[346986041,1735453840938,-879.922795,9.571e-05,2]
[346986042,1735453840947,-881.36,9.571e-05,2]
[346986043,1735453840958,-500.0,9.572e-05,2]
[346986044,1735453840967,-500.0,9.572e-05,2]
[346986045,1735453840977,-500.0,9.572e-05,2]
[346986046,1735453840986,-500.0,9.842e-05,2]
[346986047,1735453840995,-361.40777561,9.842e-05,2]
[346986048,1735453841005,-595.55,9.842e-05,2]
[346986049,1735453841014,-500.0,9.842e-05,2]
[346986050,1735453841023,-500.0,9.842e-05,2]
[346986051,1735453841033,-562.90320494,9.842e-05,2]
[346986052,1735453841044,-500.0,9.842e-05,2]
[346986053,1735453841053,-500.0,9.842e-05,2]
[346986054,1735453841062,-500.0,9.843e-05,2]
[346986055,1735453841072,-500.0,9.843e-05,2]
[346986056,1735453841081,-500.0,9.843e-05,2]
[346986057,1735453841090,-500.0,9.843e-05,2]
[346986058,1735453841099,-151.0,9.843e-05,2]
[346986059,1735453841108,-500.0,9.843e-05,2]
[346986060,1735453841117,-500.0,9.843e-05,2]
[346986061,1735453841127,-500.0,9.843e-05,2]
[346986062,1735453841136,-500.0,9.843e-05,2]
[346986063,1735453841145,-500.0,9.843e-05,2]
[346986064,1735453841155,-500.0,9.843e-05,2]
[346986065,1735453841164,-500.0,9.843e-05,2]
[346986066,1735453841174,-500.0,9.843e-05,2]
[346986067,1735453841183,-500.0,9.843e-05,2]
[346986068,1735453841193,-500.0,9.843e-05,2]
[346986069,1735453841203,-500.0,9.843e-05,2]
[346986070,1735453841212,-500.0,9.843e-05,2]
[346986071,1735453841221,-500.0,9.843e-05,2]
[346986072,1735453841231,-500.0,9.843e-05,2]
[346986073,1735453841240,-500.0,9.843e-05,2]
[346986074,1735453841250,-500.0,9.843e-05,2]
[346986075,1735453841259,-504.95,9.843e-05,2]
[346986076,1735453841269,-154.99,9.843e-05,2]
[346986077,1735453841278,-1058.83,9.843e-05,2]
[346986078,1735453841287,-297.47,9.843e-05,2]
[346986079,1735453841297,-500.0,9.843e-05,2]
[346986080,1735453841306,-500.0,9.843e-05,2]
[346986081,1735453841315,-879.922795,9.843e-05,2]
[346986082,1735453841324,-879.922795,9.843e-05,2]
[346986083,1735453841334,-500.0,9.843e-05,2]
[346986084,1735453841343,-500.0,9.843e-05,2]
[346986085,1735453841352,-504.72192284,9.843e-05,2]
[346986086,1735453841361,-263.67,9.843e-05,2]
[346986087,1735453841371,-500.0,9.843e-05,2]
[346986088,1735453841380,-500.0,9.843e-05,2]
[346986089,1735453841390,-500.0,9.843e-05,2]
[346986090,1735453841399,-564.95,9.843e-05,2]
[346986091,1735453841408,-8142.44,9.843e-05,2]
[346986092,1735453841418,-500.0,9.843e-05,2]
[346986093,1735453841430,-500.0,9.843e-05,2]
[346986094,1735453841440,-500.0,9.843e-05,2]
[346986095,1735453841449,-500.0,9.843e-05,2]
[346986096,1735453841459,-500.0,9.843e-05,2]
[346986097,1735453841468,-463.40075622,9.843e-05,2]
[346986098,1735453841477,-504.02376883,9.843e-05,2]
[346986099,1735453841487,-500.0,9.843e-05,2]
[346986100,1735453841497,-500.0,9.843e-05,2]
[346986101,1735453841506,-500.0,9.843e-05,2]
[346986102,1735453841516,-500.0,9.844e-05,2]
[346986103,1735453841526,-500.0,9.844e-05,2]
[346986104,1735453841535,-500.0,9.844e-05,2]
[346986105,1735453841544,-500.0,9.844e-05,2]
[346986106,1735453841554,-500.0,9.844e-05,2]
[346986107,1735453841563,-432.63623187,9.844e-05,2]
[346986108,1735453841572,-420.28,9.844e-05,2]
[346986109,1735453841581,-500.0,9.844e-05,2]
[346986110,1735453841591,-500.0,9.844e-05,2]
[346986111,1735453841600,-500.0,9.845e-05,2]
[346986112,1735453841609,-500.0,9.845e-05,2]
[346986113,1735453841619,-881.36,9.845e-05,2]
[346986114,1735453841628,-500.0,9.846e-05,2]
[346986115,1735453841638,-191.7954628,9.899e-05,2]
[346986116,1735453841648,-500.0,9.997e-05,2]
[346986117,1735453841657,-6890.87794848,9.998e-05,2]
[346986118,1735453841667,-316.07941554,9.999e-05,2]
[346986119,1735453841676,-151.0,9.999e-05,2]
[346986120,1735453841686,-500.0,9.999e-05,2]
[346986121,1735453841696,-500.0,9.999e-05,2]
[346986122,1735453841706,-393.53957735,9.999e-05,2]
[346986123,1735453841715,-50940.58906185,0.0001,2]
[346986124,1735453841724,-151.0,0.0001,2]
[346986125,1735453841734,-189.78338488,0.0001,2]
[346986126,1735453841743,-879.922795,0.0001,2]
[346986127,1735453841753,-879.922795,0.0001,2]
[346986128,1735453841762,-500.0,0.00010116,2]
[346986129,1735453841771,-595.55,0.00010116,2]
[346986130,1735453841781,-500.0,0.00010116,2]
[346986131,1735453841790,-500.0,0.00010116,2]
[346986132,1735453841800,-500.0,0.00010116,2]
[346986133,1735453841809,-237.45109104,0.00010116,2]
[346986134,1735453841818,-500.0,0.00010117,2]
[346986135,1735453841827,-500.0,0.00010117,2]